Body Name,Document Number,Service,Type of Expenditure,Invoice Date,Supplier Name,Cost to the Council (Amount Exc VAT),Month
EREWASH BOROUGH COUNCIL,27605,Non Domestic Rates Retention  ,NNDR Tariff                   ,19-Jun-2023,DERBY CITY COUNCIL                      ,"598,414.09",Jun-23
EREWASH BOROUGH COUNCIL,24666,Erewash Museum                ,Electricity                   ,18-May-2023,TOTALENERGIES GAS & POWER LTD           ,666.75,Jun-23
EREWASH BOROUGH COUNCIL,24664,Erewash Museum                ,Gas                           ,19-May-2023,TOTALENERGIES GAS & POWER LTD           ,901.89,Jun-23
EREWASH BOROUGH COUNCIL,25159,Erewash Museum                ,Special Events                ,15-Aug-2023,SPLATS ENTERTAINMENT                    ,290.00,Jun-23
EREWASH BOROUGH COUNCIL,24523,Erewash Museum                ,Fees Costs and Expenses       ,25-May-2023,CARESCRIBE LTD                          ,"1,800.00",Jun-23
EREWASH BOROUGH COUNCIL,24733,Erewash Museum                ,Fees Costs and Expenses       ,05-Jun-2023,PBLC LTD                                ,650.00,Jun-23
EREWASH BOROUGH COUNCIL,25475,"Police, Crime Commissioner Com",Contracted Services           ,23-Jun-2023,SHE WILL - Female Youth Empowerment     ,303.56,Jun-23
EREWASH BOROUGH COUNCIL,25703,Transport Trading Account     ,Fuel                          ,30-Jun-2023,THE RIGHT FUELCARD COMPANY LTD          ,"2,833.38",Jun-23
EREWASH BOROUGH COUNCIL,24405,Transport Trading Account     ,Lubricants and Anti-freeze    ,19-May-2023,FUCHS LUBRICANTS (UK) PLC               ,"2,290.00",Jun-23
EREWASH BOROUGH COUNCIL,24345,Transport Trading Account     ,Software Licences             ,18-May-2023,ECLIPSE AUTOMOTIVE TECHNOLOGY LTD       ,"1,445.00",Jun-23
EREWASH BOROUGH COUNCIL,25061,Household Waste Collection    ,Agency Staff                  ,10-May-2023,DKD ASSOCIATES                          ,"1,929.00",Jun-23
EREWASH BOROUGH COUNCIL,24310,Household Waste Collection    ,Agency Staff                  ,19-May-2023,EXTRA PERSONNEL LTD                     ,"9,492.67",Jun-23
EREWASH BOROUGH COUNCIL,24716,Household Waste Collection    ,Agency Staff                  ,02-Jun-2023,EXTRA PERSONNEL LTD                     ,"7,396.30",Jun-23
EREWASH BOROUGH COUNCIL,22949,Household Waste Collection    ,Agency Staff                  ,14-Apr-2023,EXTRA PERSONNEL LTD                     ,"6,019.86",Jun-23
EREWASH BOROUGH COUNCIL,24547,Household Waste Collection    ,Agency Staff                  ,26-May-2023,EXTRA PERSONNEL LTD                     ,"6,575.04",Jun-23
EREWASH BOROUGH COUNCIL,24030,Household Waste Collection    ,Agency Staff                  ,10-May-2023,EXTRA PERSONNEL LTD                     ,"6,674.34",Jun-23
EREWASH BOROUGH COUNCIL,24065,Household Waste Collection    ,Agency Staff                  ,12-May-2023,EXTRA PERSONNEL LTD                     ,"9,161.85",Jun-23
EREWASH BOROUGH COUNCIL,23894,Household Waste Collection    ,Agency Staff                  ,05-May-2023,EXTRA PERSONNEL LTD                     ,"7,399.48",Jun-23
EREWASH BOROUGH COUNCIL,24700,Household Waste Collection    ,Agency Staff                  ,27-May-2023,WORKCHAIN LTD                           ,575.25,Jun-23
EREWASH BOROUGH COUNCIL,24254,Household Waste Collection    ,Agency Staff                  ,13-May-2023,WORKCHAIN LTD                           ,168.00,Jun-23
EREWASH BOROUGH COUNCIL,24891,Household Waste Collection    ,Agency Staff                  ,03-Jun-2023,WORKCHAIN LTD                           ,345.15,Jun-23
EREWASH BOROUGH COUNCIL,24891,Household Waste Collection    ,Agency Staff                  ,03-Jun-2023,WORKCHAIN LTD                           ,107.01,Jun-23
EREWASH BOROUGH COUNCIL,25029,Household Waste Collection    ,Training                      ,08-Jun-2023,A.I.M COMMERCIAL SERVICES LTD           ,200.00,Jun-23
EREWASH BOROUGH COUNCIL,24675,Household Waste Collection    ,Tyres                         ,31-May-2023,LODGE TYRE COMPANY LTD                  ,"2,059.00",Jun-23
EREWASH BOROUGH COUNCIL,25389,Household Waste Collection    ,Hire Charges                  ,25-Aug-2022,ENTERPRISE FLEX E RENT                  ,522.65,Jun-23
EREWASH BOROUGH COUNCIL,24413,Household Waste Collection    ,General Equipment             ,23-May-2023,ARCO                                    ,429.32,Jun-23
EREWASH BOROUGH COUNCIL,24133,Household Waste Collection    ,Bins                          ,16-May-2023,PEEL ELECTRICAL LTD                     ,266.35,Jun-23
EREWASH BOROUGH COUNCIL,24735,Household Waste Collection    ,Repairs and Maintenance       ,25-May-2023,DENNIS EAGLE LTD                        ,385.00,Jun-23
EREWASH BOROUGH COUNCIL,24343,Household Waste Collection    ,Repairs and Maintenance       ,17-May-2023,DENNIS EAGLE LTD                        ,277.51,Jun-23
EREWASH BOROUGH COUNCIL,24362,Household Waste Collection    ,Repairs and Maintenance       ,19-May-2023,DENNIS EAGLE LTD                        ,252.58,Jun-23
EREWASH BOROUGH COUNCIL,23858,Household Waste Collection    ,Repairs and Maintenance       ,03-May-2023,TERBERG MATEC UK                        ,265.50,Jun-23
EREWASH BOROUGH COUNCIL,23865,Household Waste Collection    ,Repairs and Maintenance       ,04-May-2023,TERBERG MATEC UK                        ,657.98,Jun-23
EREWASH BOROUGH COUNCIL,24119,Household Waste Collection    ,Repairs and Maintenance       ,11-May-2023,TERBERG MATEC UK                        ,"2,659.51",Jun-23
EREWASH BOROUGH COUNCIL,24598,Household Waste Collection    ,Repairs and Maintenance       ,30-May-2023,TERBERG MATEC UK                        ,658.04,Jun-23
EREWASH BOROUGH COUNCIL,24325,Household Waste Collection    ,Repairs and Maintenance       ,15-May-2023,EUROTRUCK MIDLANDS LTD                  ,309.50,Jun-23
EREWASH BOROUGH COUNCIL,24410,Household Waste Collection    ,Repairs and Maintenance       ,23-May-2023,FARID HILLEND ENGINEERING LIMITED       ,303.89,Jun-23
EREWASH BOROUGH COUNCIL,24411,Household Waste Collection    ,Repairs and Maintenance       ,15-May-2023,CSEM TECHNOLOGIES LIMITED               ,"1,150.00",Jun-23
EREWASH BOROUGH COUNCIL,24309,Trade Waste                   ,Agency Staff                  ,19-May-2023,EXTRA PERSONNEL LTD                     ,390.00,Jun-23
EREWASH BOROUGH COUNCIL,24032,Trade Waste                   ,Agency Staff                  ,10-May-2023,EXTRA PERSONNEL LTD                     ,479.38,Jun-23
EREWASH BOROUGH COUNCIL,23889,Trade Waste                   ,Agency Staff                  ,05-May-2023,EXTRA PERSONNEL LTD                     ,487.50,Jun-23
EREWASH BOROUGH COUNCIL,24060,Trade Waste                   ,Agency Staff                  ,12-May-2023,EXTRA PERSONNEL LTD                     ,390.00,Jun-23
EREWASH BOROUGH COUNCIL,24714,Trade Waste                   ,Agency Staff                  ,02-Jun-2023,EXTRA PERSONNEL LTD                     ,487.50,Jun-23
EREWASH BOROUGH COUNCIL,24548,Trade Waste                   ,Agency Staff                  ,26-May-2023,EXTRA PERSONNEL LTD                     ,487.50,Jun-23
EREWASH BOROUGH COUNCIL,24411,Trade Waste                   ,Repairs and Maintenance       ,15-May-2023,CSEM TECHNOLOGIES LIMITED               ,"1,150.00",Jun-23
EREWASH BOROUGH COUNCIL,24267,Kerbside Recycling Collection ,Waste Disposal                ,30-Apr-2023,GAE SMITH HOLDINGS T/A CASEPAK          ,"40,244.72",Jun-23
EREWASH BOROUGH COUNCIL,25009,Kerbside Recycling Collection ,Waste Disposal                ,31-May-2023,GAE SMITH HOLDINGS T/A CASEPAK          ,"48,239.56",Jun-23
EREWASH BOROUGH COUNCIL,24310,Kerbside Recycling Collection ,Agency Staff                  ,19-May-2023,EXTRA PERSONNEL LTD                     ,"6,328.44",Jun-23
EREWASH BOROUGH COUNCIL,24716,Kerbside Recycling Collection ,Agency Staff                  ,02-Jun-2023,EXTRA PERSONNEL LTD                     ,"4,930.87",Jun-23
EREWASH BOROUGH COUNCIL,22949,Kerbside Recycling Collection ,Agency Staff                  ,14-Apr-2023,EXTRA PERSONNEL LTD                     ,"4,013.24",Jun-23
EREWASH BOROUGH COUNCIL,24547,Kerbside Recycling Collection ,Agency Staff                  ,26-May-2023,EXTRA PERSONNEL LTD                     ,"4,383.36",Jun-23
EREWASH BOROUGH COUNCIL,24030,Kerbside Recycling Collection ,Agency Staff                  ,10-May-2023,EXTRA PERSONNEL LTD                     ,"4,449.56",Jun-23
EREWASH BOROUGH COUNCIL,24065,Kerbside Recycling Collection ,Agency Staff                  ,12-May-2023,EXTRA PERSONNEL LTD                     ,"6,107.90",Jun-23
EREWASH BOROUGH COUNCIL,23894,Kerbside Recycling Collection ,Agency Staff                  ,05-May-2023,EXTRA PERSONNEL LTD                     ,"4,932.98",Jun-23
EREWASH BOROUGH COUNCIL,24700,Kerbside Recycling Collection ,Agency Staff                  ,27-May-2023,WORKCHAIN LTD                           ,0.00,Jun-23
EREWASH BOROUGH COUNCIL,24254,Kerbside Recycling Collection ,Agency Staff                  ,13-May-2023,WORKCHAIN LTD                           ,112.00,Jun-23
EREWASH BOROUGH COUNCIL,24891,Kerbside Recycling Collection ,Agency Staff                  ,03-Jun-2023,WORKCHAIN LTD                           ,230.10,Jun-23
EREWASH BOROUGH COUNCIL,24891,Kerbside Recycling Collection ,Agency Staff                  ,03-Jun-2023,WORKCHAIN LTD                           ,454.84,Jun-23
EREWASH BOROUGH COUNCIL,24675,Kerbside Recycling Collection ,Tyres                         ,31-May-2023,LODGE TYRE COMPANY LTD                  ,"1,372.50",Jun-23
EREWASH BOROUGH COUNCIL,24146,Kerbside Recycling Collection ,Repairs and Maintenance       ,11-May-2023,DENNIS EAGLE LTD                        ,301.95,Jun-23
EREWASH BOROUGH COUNCIL,24760,Kerbside Recycling Collection ,Repairs and Maintenance       ,30-May-2023,DENNIS EAGLE LTD                        ,"5,673.00",Jun-23
EREWASH BOROUGH COUNCIL,24592,Kerbside Recycling Collection ,Repairs and Maintenance       ,25-May-2023,DENNIS EAGLE LTD                        ,824.04,Jun-23
EREWASH BOROUGH COUNCIL,24342,Kerbside Recycling Collection ,Repairs and Maintenance       ,17-May-2023,DENNIS EAGLE LTD                        ,301.95,Jun-23
EREWASH BOROUGH COUNCIL,24083,Kerbside Recycling Collection ,Repairs and Maintenance       ,05-May-2023,DENNIS EAGLE LTD                        ,569.26,Jun-23
EREWASH BOROUGH COUNCIL,24083,Kerbside Recycling Collection ,Repairs and Maintenance       ,05-May-2023,DENNIS EAGLE LTD                        ,603.90,Jun-23
EREWASH BOROUGH COUNCIL,24411,Kerbside Recycling Collection ,Repairs and Maintenance       ,15-May-2023,CSEM TECHNOLOGIES LIMITED               ,"1,150.00",Jun-23
EREWASH BOROUGH COUNCIL,24976,Food Inspection and Hygiene   ,Materials and Consumables     ,02-Jun-2023,KLIPSPRINGER INSTRUMENTATION            ,389.60,Jun-23
EREWASH BOROUGH COUNCIL,25038,Contaminated Land             ,Site Investigations           ,16-May-2023,STM ENVIRONMENTAL CONSULTANTS LTD       ,864.00,Jun-23
EREWASH BOROUGH COUNCIL,23808,Infec Disease & Food Poisoning,Contracted Services           ,03-May-2023,OYSTER PARTNERSHIP LTD                  ,308.74,Jun-23
EREWASH BOROUGH COUNCIL,24509,Infec Disease & Food Poisoning,Contracted Services           ,24-May-2023,OYSTER PARTNERSHIP LTD                  ,309.66,Jun-23
EREWASH BOROUGH COUNCIL,24663,Infec Disease & Food Poisoning,Contracted Services           ,31-May-2023,OYSTER PARTNERSHIP LTD                  ,313.80,Jun-23
EREWASH BOROUGH COUNCIL,24251,Infec Disease & Food Poisoning,Contracted Services           ,17-May-2023,OYSTER PARTNERSHIP LTD                  ,308.28,Jun-23
EREWASH BOROUGH COUNCIL,24026,Infec Disease & Food Poisoning,Contracted Services           ,10-May-2023,OYSTER PARTNERSHIP LTD                  ,306.90,Jun-23
EREWASH BOROUGH COUNCIL,24043,Infec Disease & Food Poisoning,Contracted Services           ,10-May-2023,BUCKINGHAM FUTURES LIMITED              ,"1,706.85",Jun-23
EREWASH BOROUGH COUNCIL,24521,Infec Disease & Food Poisoning,Contracted Services           ,24-May-2023,BUCKINGHAM FUTURES LIMITED              ,386.85,Jun-23
EREWASH BOROUGH COUNCIL,24521,Infec Disease & Food Poisoning,Contracted Services           ,24-May-2023,BUCKINGHAM FUTURES LIMITED              ,"1,386.60",Jun-23
EREWASH BOROUGH COUNCIL,24263,Infec Disease & Food Poisoning,Contracted Services           ,17-May-2023,BUCKINGHAM FUTURES LIMITED              ,"2,098.88",Jun-23
EREWASH BOROUGH COUNCIL,24517,Infec Disease & Food Poisoning,Contracted Services           ,24-May-2023,CHARTERED INSTITUTE OF ENVIORNMENTAL HTH,800.00,Jun-23
EREWASH BOROUGH COUNCIL,24389,Corporate Health and Safety   ,Fire Maintenance              ,23-May-2023,CHURCHES FIRE SECURITY LTD              ,579.98,Jun-23
EREWASH BOROUGH COUNCIL,24670,Corporate Health and Safety   ,Fire Maintenance              ,31-May-2023,CHURCHES FIRE SECURITY LTD              ,541.23,Jun-23
EREWASH BOROUGH COUNCIL,24322,Corporate Health and Safety   ,Fire Maintenance              ,19-May-2023,CHURCHES FIRE SECURITY LTD              ,264.98,Jun-23
EREWASH BOROUGH COUNCIL,24679,Corporate Health and Safety   ,Water Testing                 ,31-May-2023,STERILIZING SERVICES LTD                ,"1,256.90",Jun-23
EREWASH BOROUGH COUNCIL,23614,Corporate Health and Safety   ,Water Testing                 ,28-Apr-2023,STERILIZING SERVICES LTD                ,"1,567.20",Jun-23
EREWASH BOROUGH COUNCIL,24044,Urban Renewal                 ,Agency Staff                  ,10-May-2023,BUCKINGHAM FUTURES LIMITED              ,"1,342.67",Jun-23
EREWASH BOROUGH COUNCIL,24694,Urban Renewal                 ,Agency Staff                  ,31-May-2023,BUCKINGHAM FUTURES LIMITED              ,"1,406.00",Jun-23
EREWASH BOROUGH COUNCIL,24520,Urban Renewal                 ,Agency Staff                  ,24-May-2023,BUCKINGHAM FUTURES LIMITED              ,"1,406.00",Jun-23
EREWASH BOROUGH COUNCIL,24947,Urban Renewal                 ,Agency Staff                  ,07-Jun-2023,BUCKINGHAM FUTURES LIMITED              ,"1,337.60",Jun-23
EREWASH BOROUGH COUNCIL,24264,Urban Renewal                 ,Agency Staff                  ,17-May-2023,BUCKINGHAM FUTURES LIMITED              ,"1,329.37",Jun-23
EREWASH BOROUGH COUNCIL,24814,Homelessness                  ,Temporary Accommodation       ,07-Jun-2023,VICTORIA PARK HOTEL                     ,525.00,Jun-23
EREWASH BOROUGH COUNCIL,24814,Homelessness                  ,Temporary Accommodation       ,07-Jun-2023,VICTORIA PARK HOTEL                     ,"1,134.00",Jun-23
EREWASH BOROUGH COUNCIL,24677,Homelessness                  ,Temporary Accommodation       ,01-Jun-2023,VICTORIA PARK HOTEL                     ,621.00,Jun-23
EREWASH BOROUGH COUNCIL,24677,Homelessness                  ,Temporary Accommodation       ,01-Jun-2023,VICTORIA PARK HOTEL                     ,"2,070.00",Jun-23
EREWASH BOROUGH COUNCIL,23139,Homelessness                  ,Temporary Accommodation       ,20-Apr-2023,VICTORIA PARK HOTEL                     ,"3,456.00",Jun-23
EREWASH BOROUGH COUNCIL,23139,Homelessness                  ,Temporary Accommodation       ,20-Apr-2023,VICTORIA PARK HOTEL                     ,"1,584.00",Jun-23
EREWASH BOROUGH COUNCIL,24678,Homelessness                  ,Temporary Accommodation       ,01-Jun-2023,VICTORIA PARK HOTEL                     ,"1,518.00",Jun-23
EREWASH BOROUGH COUNCIL,24678,Homelessness                  ,Temporary Accommodation       ,01-Jun-2023,VICTORIA PARK HOTEL                     ,"1,725.00",Jun-23
EREWASH BOROUGH COUNCIL,24558,Homelessness                  ,Temporary Accommodation       ,29-May-2023,A38 WOODLANDS                           ,348.00,Jun-23
EREWASH BOROUGH COUNCIL,24070,Homelessness                  ,Temporary Accommodation       ,15-May-2023,A38 WOODLANDS                           ,406.00,Jun-23
EREWASH BOROUGH COUNCIL,24071,Homelessness                  ,Temporary Accommodation       ,15-May-2023,A38 WOODLANDS                           ,406.00,Jun-23
EREWASH BOROUGH COUNCIL,24072,Homelessness                  ,Temporary Accommodation       ,15-May-2023,A38 WOODLANDS                           ,406.00,Jun-23
EREWASH BOROUGH COUNCIL,24073,Homelessness                  ,Temporary Accommodation       ,15-May-2023,A38 WOODLANDS                           ,406.00,Jun-23
EREWASH BOROUGH COUNCIL,24074,Homelessness                  ,Temporary Accommodation       ,15-May-2023,A38 WOODLANDS                           ,406.00,Jun-23
EREWASH BOROUGH COUNCIL,24313,Homelessness                  ,Temporary Accommodation       ,22-May-2023,A38 WOODLANDS                           ,406.00,Jun-23
EREWASH BOROUGH COUNCIL,24314,Homelessness                  ,Temporary Accommodation       ,22-May-2023,A38 WOODLANDS                           ,406.00,Jun-23
EREWASH BOROUGH COUNCIL,24315,Homelessness                  ,Temporary Accommodation       ,22-May-2023,A38 WOODLANDS                           ,406.00,Jun-23
EREWASH BOROUGH COUNCIL,24316,Homelessness                  ,Temporary Accommodation       ,22-May-2023,A38 WOODLANDS                           ,406.00,Jun-23
EREWASH BOROUGH COUNCIL,24554,Homelessness                  ,Temporary Accommodation       ,29-May-2023,A38 WOODLANDS                           ,406.00,Jun-23
EREWASH BOROUGH COUNCIL,24555,Homelessness                  ,Temporary Accommodation       ,29-May-2023,A38 WOODLANDS                           ,406.00,Jun-23
EREWASH BOROUGH COUNCIL,24556,Homelessness                  ,Temporary Accommodation       ,29-May-2023,A38 WOODLANDS                           ,406.00,Jun-23
EREWASH BOROUGH COUNCIL,24557,Homelessness                  ,Temporary Accommodation       ,29-May-2023,A38 WOODLANDS                           ,406.00,Jun-23
EREWASH BOROUGH COUNCIL,24723,Homelessness                  ,Temporary Accommodation       ,05-Jun-2023,A38 WOODLANDS                           ,406.00,Jun-23
EREWASH BOROUGH COUNCIL,24724,Homelessness                  ,Temporary Accommodation       ,05-Jun-2023,A38 WOODLANDS                           ,406.00,Jun-23
EREWASH BOROUGH COUNCIL,24725,Homelessness                  ,Temporary Accommodation       ,05-Jun-2023,A38 WOODLANDS                           ,406.00,Jun-23
EREWASH BOROUGH COUNCIL,24726,Homelessness                  ,Temporary Accommodation       ,05-Jun-2023,A38 WOODLANDS                           ,406.00,Jun-23
EREWASH BOROUGH COUNCIL,24727,Homelessness                  ,Temporary Accommodation       ,05-Jun-2023,A38 WOODLANDS                           ,406.00,Jun-23
EREWASH BOROUGH COUNCIL,24728,Homelessness                  ,Temporary Accommodation       ,05-Jun-2023,A38 WOODLANDS                           ,406.00,Jun-23
EREWASH BOROUGH COUNCIL,24950,Homelessness                  ,Temporary Accommodation       ,12-Jun-2023,A38 WOODLANDS                           ,406.00,Jun-23
EREWASH BOROUGH COUNCIL,24951,Homelessness                  ,Temporary Accommodation       ,12-Jun-2023,A38 WOODLANDS                           ,406.00,Jun-23
EREWASH BOROUGH COUNCIL,24952,Homelessness                  ,Temporary Accommodation       ,12-Jun-2023,A38 WOODLANDS                           ,406.00,Jun-23
EREWASH BOROUGH COUNCIL,24953,Homelessness                  ,Temporary Accommodation       ,12-Jun-2023,A38 WOODLANDS                           ,406.00,Jun-23
EREWASH BOROUGH COUNCIL,25178,Homelessness                  ,Temporary Accommodation       ,19-Jun-2023,A38 WOODLANDS                           ,406.00,Jun-23
EREWASH BOROUGH COUNCIL,25179,Homelessness                  ,Temporary Accommodation       ,19-Jun-2023,A38 WOODLANDS                           ,406.00,Jun-23
EREWASH BOROUGH COUNCIL,25180,Homelessness                  ,Temporary Accommodation       ,19-Jun-2023,A38 WOODLANDS                           ,406.00,Jun-23
EREWASH BOROUGH COUNCIL,25181,Homelessness                  ,Temporary Accommodation       ,19-Jun-2023,A38 WOODLANDS                           ,406.00,Jun-23
EREWASH BOROUGH COUNCIL,25477,Homelessness                  ,Leased Properties             ,14-Jun-2023,JP'S GROUNDS & MAINTENANCE SERVICES     ,850.00,Jun-23
EREWASH BOROUGH COUNCIL,24792,Homelessness                  ,Leased Properties             ,01-Jun-2023,EMH HOMES                               ,967.62,Jun-23
EREWASH BOROUGH COUNCIL,24793,Homelessness                  ,Leased Properties             ,01-Jun-2023,EMH HOMES                               ,"1,059.74",Jun-23
EREWASH BOROUGH COUNCIL,25245,Homelessness                  ,Leased Properties             ,20-Jun-2023,TUNTUM HOUSING ASSOCIATION.             ,"1,238.25",Jun-23
EREWASH BOROUGH COUNCIL,22894,Homelessness                  ,Leased Properties             ,01-Apr-2023,FUTURES HOMESCAPE LTD                   ,"1,141.75",Jun-23
EREWASH BOROUGH COUNCIL,24532,Homelessness                  ,Homelessness Prevention Grant ,23-May-2023,NORTH EAST DERBYSHIRE DISTRICT COUNCIL. ,"2,597.22",Jun-23
EREWASH BOROUGH COUNCIL,24693,Front Line Support Services   ,Security                      ,31-May-2023,KINGS ARMOURED SECURITY SERVICES        ,465.00,Jun-23
EREWASH BOROUGH COUNCIL,24385,Statement of Accounts         ,Valuation Fees                ,23-May-2023,WILKS HEAD & EVE LTD                    ,"7,665.00",Jun-23
EREWASH BOROUGH COUNCIL,24690,Statement of Accounts         ,Year End Pension Valuation Fee,30-May-2023,DERBYSHIRE COUNTY COUNCIL...            ,"1,800.00",Jun-23
EREWASH BOROUGH COUNCIL,24997,Insurances (Corporate Matters),Insurance                     ,05-Apr-2023,ZURICH MUNICIPAL                        ,"2,126.39",Jun-23
EREWASH BOROUGH COUNCIL,24996,Insurances (Corporate Matters),Insurance                     ,05-Apr-2023,ZURICH MUNICIPAL                        ,"20,203.66",Jun-23
EREWASH BOROUGH COUNCIL,25234,Treasury and Bank Charges     ,Bank Charges                  ,14-Jun-2023,LLOYDS BANK PLC                         ,843.36,Jun-23
EREWASH BOROUGH COUNCIL,24968,Treasury and Bank Charges     ,Allpay/Post Office Charges    ,08-Jun-2023,PAY 360 LIMITED (CAPITA)                ,"5,761.04",Jun-23
EREWASH BOROUGH COUNCIL,25785,Treasury and Bank Charges     ,Allpay/Post Office Charges    ,30-Jun-2023,ALLPAY LIMITED                          ,834.53,Jun-23
EREWASH BOROUGH COUNCIL,25437,Accountancy                   ,Reference Literature and Publi,14-Mar-2023,CHARTERED INSTITUTE OF PUBLIC FINANCE & ,383.41,Jun-23
EREWASH BOROUGH COUNCIL,24791,Accountancy                   ,Agency Staff                  ,04-Jun-2023,MACILDOWIE RECRUITMENT EXPERTISE        ,410.88,Jun-23
EREWASH BOROUGH COUNCIL,24386,Accountancy                   ,Agency Staff                  ,21-May-2023,MACILDOWIE RECRUITMENT EXPERTISE        ,720.28,Jun-23
EREWASH BOROUGH COUNCIL,24673,Accountancy                   ,Agency Staff                  ,28-May-2023,MACILDOWIE RECRUITMENT EXPERTISE        ,948.18,Jun-23
EREWASH BOROUGH COUNCIL,25437,Revenues and Benefits         ,Reference Literature and Publi,14-Mar-2023,CHARTERED INSTITUTE OF PUBLIC FINANCE & ,383.29,Jun-23
EREWASH BOROUGH COUNCIL,23933,Revenues and Benefits         ,Postages                      ,08-May-2023,ROYAL MAIL GROUP LTD.                   ,395.00,Jun-23
EREWASH BOROUGH COUNCIL,23662,Revenues and Benefits         ,Postages                      ,03-May-2023,ROYAL MAIL GROUP LTD.                   ,526.96,Jun-23
EREWASH BOROUGH COUNCIL,24152,Revenues and Benefits         ,Postages                      ,17-May-2023,ROYAL MAIL GROUP LTD.                   ,"1,066.28",Jun-23
EREWASH BOROUGH COUNCIL,23940,Revenues and Benefits         ,Postages                      ,10-May-2023,ROYAL MAIL GROUP LTD.                   ,536.00,Jun-23
EREWASH BOROUGH COUNCIL,24577,Revenues and Benefits         ,Postages                      ,31-May-2023,ROYAL MAIL GROUP LTD.                   ,557.68,Jun-23
EREWASH BOROUGH COUNCIL,24394,Revenues and Benefits         ,Postages                      ,24-May-2023,ROYAL MAIL GROUP LTD.                   ,"1,422.57",Jun-23
EREWASH BOROUGH COUNCIL,24957,Revenues and Benefits         ,Postages                      ,31-May-2023,DSI BILLING SERVICES LTD                ,"1,528.54",Jun-23
EREWASH BOROUGH COUNCIL,25040,Revenues and Benefits         ,Postages                      ,31-May-2023,TELSOLUTIONS LTD                        ,300.00,Jun-23
EREWASH BOROUGH COUNCIL,24734,Revenues and Benefits         ,Postages                      ,01-Jun-2023,FRAMA UK LIMITED                        ,352.40,Jun-23
EREWASH BOROUGH COUNCIL,24762,Non-domestic Rates Collection ,Fees Costs and Expenses       ,12-Apr-2023,INFORM CPI LTD                          ,"3,000.00",Jun-23
EREWASH BOROUGH COUNCIL,25437,Internal Audit                ,Reference Literature and Publi,14-Mar-2023,CHARTERED INSTITUTE OF PUBLIC FINANCE & ,383.30,Jun-23
EREWASH BOROUGH COUNCIL,24402,ICT Support Services          ,Software Licences             ,22-May-2023,PHOENIX SOFTWARE LTD                    ,"2,467.85",Jun-23
EREWASH BOROUGH COUNCIL,23689,ICT Support Services          ,Data Lines                    ,03-May-2023,AXESS SYSTEMS LTD                       ,564.00,Jun-23
EREWASH BOROUGH COUNCIL,23919,ICT Support Services          ,Mobile Phones                 ,04-May-2023,CCS MEDIA LIMITED                       ,"1,538.16",Jun-23
EREWASH BOROUGH COUNCIL,24901,ICT Support Services          ,Mobile Phones                 ,07-Jun-2023,CLASS AFFINITY PROJECTS LTD             ,"2,805.74",Jun-23
EREWASH BOROUGH COUNCIL,24566,ICT Support Services          ,Telephones                    ,22-May-2023,BRITISH TELECOMMUNICATIONS PLC          ,280.04,Jun-23
EREWASH BOROUGH COUNCIL,25432,ICT Support Services          ,Telephones                    ,22-Jun-2023,BRITISH TELECOMMUNICATIONS PLC          ,279.43,Jun-23
EREWASH BOROUGH COUNCIL,24595,ICT Support Services          ,Security                      ,26-May-2023,PHOENIX SOFTWARE LTD                    ,"4,000.00",Jun-23
EREWASH BOROUGH COUNCIL,24606,ICT Support Services          ,Security                      ,30-Mar-2023,AXESS SYSTEMS LTD                       ,"6,650.00",Jun-23
EREWASH BOROUGH COUNCIL,24156,Occupational Health & Welfare ,Occupational Health Service   ,05-May-2023,MEDIGOLD HEALTH CONSULTANCY LIMITED     ,268.00,Jun-23
EREWASH BOROUGH COUNCIL,24703,Development Control           ,Consultants Fees              ,31-May-2023,IDOM MEREBROOK LTD                      ,330.00,Jun-23
EREWASH BOROUGH COUNCIL,23951,Development Control           ,Consultants Fees              ,10-May-2023,IVY LEGAL LIMITED                       ,"1,250.00",Jun-23
EREWASH BOROUGH COUNCIL,25063,Development Control           ,Consultants Fees              ,31-May-2023,TERRAQUEST DATA SOLUTIONS               ,"1,247.00",Jun-23
EREWASH BOROUGH COUNCIL,24777,Development Control           ,Consultants Fees              ,31-May-2023,TERRAQUEST DATA SOLUTIONS               ,"6,420.40",Jun-23
EREWASH BOROUGH COUNCIL,24311,Development Control           ,Consultants Fees              ,19-May-2023,EXTRA PERSONNEL LTD                     ,478.80,Jun-23
EREWASH BOROUGH COUNCIL,24061,Development Control           ,Consultants Fees              ,12-May-2023,EXTRA PERSONNEL LTD                     ,478.80,Jun-23
EREWASH BOROUGH COUNCIL,24713,Development Control           ,Consultants Fees              ,02-Jun-2023,EXTRA PERSONNEL LTD                     ,590.52,Jun-23
EREWASH BOROUGH COUNCIL,24550,Development Control           ,Consultants Fees              ,26-May-2023,EXTRA PERSONNEL LTD                     ,590.52,Jun-23
EREWASH BOROUGH COUNCIL,23893,Development Control           ,Consultants Fees              ,05-May-2023,EXTRA PERSONNEL LTD                     ,478.80,Jun-23
EREWASH BOROUGH COUNCIL,24797,Development Control           ,Consultants Fees              ,31-May-2023,SYMONDS AND SAMPSON                     ,"4,189.24",Jun-23
EREWASH BOROUGH COUNCIL,24088,Economic Development          ,Contracted Services           ,09-May-2023,PROXIMITY FUTURES T/A ELEPHANT WIFI     ,"2,729.97",Jun-23
EREWASH BOROUGH COUNCIL,24738,Economic Development          ,Project Grants                ,31-May-2023,INSIDE OUT GROUP (EUROPE) LTD           ,375.00,Jun-23
EREWASH BOROUGH COUNCIL,25400,Building Control - Fee Earning,Contracted Services           ,24-Jun-2023,MANSFIELD DISTRICT COUNCIL              ,"1,000.00",Jun-23
EREWASH BOROUGH COUNCIL,24552,Building Control - Fee Earning,Agency Staff                  ,19-May-2023,REED SPECIALIST RECRUITMENT LTD         ,788.16,Jun-23
EREWASH BOROUGH COUNCIL,24312,Building Control - Fee Earning,Agency Staff                  ,12-May-2023,REED SPECIALIST RECRUITMENT LTD         ,663.34,Jun-23
EREWASH BOROUGH COUNCIL,24954,Building Control - Fee Earning,Agency Staff                  ,02-Jun-2023,REED SPECIALIST RECRUITMENT LTD         ,829.17,Jun-23
EREWASH BOROUGH COUNCIL,24718,Building Control - Fee Earning,Agency Staff                  ,26-May-2023,REED SPECIALIST RECRUITMENT LTD         ,829.17,Jun-23
EREWASH BOROUGH COUNCIL,24067,Building Control - Fee Earning,Agency Staff                  ,05-May-2023,REED SPECIALIST RECRUITMENT LTD         ,829.17,Jun-23
EREWASH BOROUGH COUNCIL,23819,Building Control - Fee Earning,Agency Staff                  ,04-May-2023,MATCHTECH GROUP (UK) LIMITED            ,825.00,Jun-23
EREWASH BOROUGH COUNCIL,23817,Building Control - Fee Earning,Agency Staff                  ,04-May-2023,MATCHTECH GROUP (UK) LIMITED            ,"2,172.50",Jun-23
EREWASH BOROUGH COUNCIL,24668,Building Control - Fee Earning,Agency Staff                  ,31-May-2023,MATCHTECH GROUP (UK) LIMITED            ,"1,237.50",Jun-23
EREWASH BOROUGH COUNCIL,24282,Building Control - Fee Earning,Agency Staff                  ,18-May-2023,MATCHTECH GROUP (UK) LIMITED            ,825.00,Jun-23
EREWASH BOROUGH COUNCIL,24285,Building Control - Fee Earning,Agency Staff                  ,18-May-2023,MATCHTECH GROUP (UK) LIMITED            ,"1,237.50",Jun-23
EREWASH BOROUGH COUNCIL,24037,Building Control - Fee Earning,Agency Staff                  ,11-May-2023,MATCHTECH GROUP (UK) LIMITED            ,"1,237.50",Jun-23
EREWASH BOROUGH COUNCIL,24296,Building Control Adv & Inform ,Contracted Services           ,11-May-2023,MANSFIELD DISTRICT COUNCIL              ,"1,263.04",Jun-23
EREWASH BOROUGH COUNCIL,24768,Registration of Electors      ,Subscriptions                 ,01-Jun-2023,THOMSON REUTERS                         ,343.00,Jun-23
EREWASH BOROUGH COUNCIL,24721,Elections                     ,General Equipment             ,05-Jun-2023,ROYAL MAIL GROUP LTD.                   ,770.46,Jun-23
EREWASH BOROUGH COUNCIL,23606,Elections                     ,General Equipment             ,02-May-2023,ROYAL MAIL GROUP LTD.                   ,"4,493.36",Jun-23
EREWASH BOROUGH COUNCIL,23904,Elections                     ,General Equipment             ,09-May-2023,ROYAL MAIL GROUP LTD.                   ,"1,379.24",Jun-23
EREWASH BOROUGH COUNCIL,24583,Elections                     ,General Equipment             ,25-May-2023,DERBYSHIRE COMM HEALTH  SERVS NHS FT    ,250.54,Jun-23
EREWASH BOROUGH COUNCIL,24057,Elections                     ,General Equipment             ,07-May-2023,EFFECTIVE SECURITY SERVICES LTD         ,629.00,Jun-23
EREWASH BOROUGH COUNCIL,25195,Elections                     ,General Equipment             ,09-May-2023,BE EVENT HIRE                           ,"1,550.00",Jun-23
EREWASH BOROUGH COUNCIL,23932,Elections                     ,General Equipment             ,05-May-2023,BRANDON HIRE STATION                    ,"1,646.58",Jun-23
EREWASH BOROUGH COUNCIL,24096,Elections                     ,General Equipment             ,11-May-2023,PEEL ELECTRICAL LTD                     ,"1,317.20",Jun-23
EREWASH BOROUGH COUNCIL,23947,Elections                     ,General Equipment             ,04-May-2023,PORTAKABIN LTD                          ,"1,955.00",Jun-23
EREWASH BOROUGH COUNCIL,24515,Legal Services                ,Fees Costs and Expenses       ,24-May-2023,DMH STALLARD LLP                        ,"10,000.00",Jun-23
EREWASH BOROUGH COUNCIL,24515,Legal Services                ,Fees Costs and Expenses       ,24-May-2023,DMH STALLARD LLP                        ,"20,000.00",Jun-23
EREWASH BOROUGH COUNCIL,25225,Civic Transport               ,Hire Charges                  ,31-May-2023,PINNACLE EXECUTIVE CARS LIMITED         ,400.00,Jun-23
EREWASH BOROUGH COUNCIL,25225,Civic Transport               ,Hire Charges                  ,31-May-2023,PINNACLE EXECUTIVE CARS LIMITED         ,"1,809.00",Jun-23
EREWASH BOROUGH COUNCIL,24305,Green Space                   ,Agency Staff                  ,19-May-2023,EXTRA PERSONNEL LTD                     ,"2,151.82",Jun-23
EREWASH BOROUGH COUNCIL,24066,Green Space                   ,Agency Staff                  ,12-May-2023,EXTRA PERSONNEL LTD                     ,"3,171.29",Jun-23
EREWASH BOROUGH COUNCIL,24308,Green Space                   ,Agency Staff                  ,19-May-2023,EXTRA PERSONNEL LTD                     ,"3,499.09",Jun-23
EREWASH BOROUGH COUNCIL,24033,Green Space                   ,Agency Staff                  ,10-May-2023,EXTRA PERSONNEL LTD                     ,"1,973.35",Jun-23
EREWASH BOROUGH COUNCIL,24028,Green Space                   ,Agency Staff                  ,10-May-2023,EXTRA PERSONNEL LTD                     ,"3,108.64",Jun-23
EREWASH BOROUGH COUNCIL,24711,Green Space                   ,Agency Staff                  ,02-Jun-2023,EXTRA PERSONNEL LTD                     ,"3,217.95",Jun-23
EREWASH BOROUGH COUNCIL,24715,Green Space                   ,Agency Staff                  ,02-Jun-2023,EXTRA PERSONNEL LTD                     ,"4,831.19",Jun-23
EREWASH BOROUGH COUNCIL,24549,Green Space                   ,Agency Staff                  ,26-May-2023,EXTRA PERSONNEL LTD                     ,"2,537.87",Jun-23
EREWASH BOROUGH COUNCIL,24551,Green Space                   ,Agency Staff                  ,26-May-2023,EXTRA PERSONNEL LTD                     ,"3,578.14",Jun-23
EREWASH BOROUGH COUNCIL,23814,Green Space                   ,Agency Staff                  ,03-May-2023,EXTRA PERSONNEL LTD                     ,203.58,Jun-23
EREWASH BOROUGH COUNCIL,23891,Green Space                   ,Agency Staff                  ,05-May-2023,EXTRA PERSONNEL LTD                     ,"2,772.44",Jun-23
EREWASH BOROUGH COUNCIL,23892,Green Space                   ,Agency Staff                  ,05-May-2023,EXTRA PERSONNEL LTD                     ,"3,313.31",Jun-23
EREWASH BOROUGH COUNCIL,23861,Green Space                   ,Training                      ,03-May-2023,DERBYSHIRE LANDSKILLS                   ,528.00,Jun-23
EREWASH BOROUGH COUNCIL,25029,Green Space                   ,Training                      ,08-Jun-2023,A.I.M COMMERCIAL SERVICES LTD           ,200.00,Jun-23
EREWASH BOROUGH COUNCIL,24665,Green Space                   ,Electricity                   ,18-May-2023,TOTALENERGIES GAS & POWER LTD           ,"2,352.43",Jun-23
EREWASH BOROUGH COUNCIL,24666,Green Space                   ,Electricity                   ,18-May-2023,TOTALENERGIES GAS & POWER LTD           ,"2,777.04",Jun-23
EREWASH BOROUGH COUNCIL,24666,Green Space                   ,Electricity                   ,18-May-2023,TOTALENERGIES GAS & POWER LTD           ,"1,334.86",Jun-23
EREWASH BOROUGH COUNCIL,24664,Green Space                   ,Gas                           ,19-May-2023,TOTALENERGIES GAS & POWER LTD           ,674.23,Jun-23
EREWASH BOROUGH COUNCIL,24664,Green Space                   ,Gas                           ,19-May-2023,TOTALENERGIES GAS & POWER LTD           ,620.04,Jun-23
EREWASH BOROUGH COUNCIL,24675,Green Space                   ,Tyres                         ,31-May-2023,LODGE TYRE COMPANY LTD                  ,796.00,Jun-23
EREWASH BOROUGH COUNCIL,24544,Green Space                   ,Materials and Consumables     ,26-May-2023,ILKESTON PLY & DIY LTD                  ,577.50,Jun-23
EREWASH BOROUGH COUNCIL,25031,Green Space                   ,Materials and Consumables     ,25-May-2023,J B CLOWES                              ,300.21,Jun-23
EREWASH BOROUGH COUNCIL,24787,Green Space                   ,Materials and Consumables     ,02-Jun-2023,KERNOCK PARK PLANTS                     ,"2,085.00",Jun-23
EREWASH BOROUGH COUNCIL,24788,Green Space                   ,Materials and Consumables     ,02-Jun-2023,KERNOCK PARK PLANTS                     ,"2,085.00",Jun-23
EREWASH BOROUGH COUNCIL,24698,Green Space                   ,Materials and Consumables     ,28-Apr-2023,ROBERT POCHIN LTD                       ,421.46,Jun-23
EREWASH BOROUGH COUNCIL,25004,Green Space                   ,Materials and Consumables     ,06-Jun-2023,ENFORCEMENT BAILIFFS LTD T/A QUALITY BAL,630.00,Jun-23
EREWASH BOROUGH COUNCIL,24393,Green Space                   ,Materials and Consumables     ,23-May-2023,TUDOR ENVIRONMENTAL                     ,599.00,Jun-23
EREWASH BOROUGH COUNCIL,24516,Green Space                   ,Materials and Consumables     ,24-May-2023,TUDOR ENVIRONMENTAL                     ,926.00,Jun-23
EREWASH BOROUGH COUNCIL,24761,Green Space                   ,Materials and Consumables     ,10-May-2023,NOW U KNOW TRAINING                     ,675.00,Jun-23
EREWASH BOROUGH COUNCIL,24775,Green Space                   ,Materials and Consumables     ,31-May-2023,BRANDON HIRE STATION                    ,393.00,Jun-23
EREWASH BOROUGH COUNCIL,24910,Green Space                   ,Materials and Consumables     ,04-Jun-2023,GO TRAFFIC MANAGEMENT                   ,929.50,Jun-23
EREWASH BOROUGH COUNCIL,24400,Green Space                   ,Materials and Consumables     ,17-May-2023,VITAX LTD                               ,481.56,Jun-23
EREWASH BOROUGH COUNCIL,24401,Green Space                   ,Materials and Consumables     ,15-May-2023,VITAX LTD                               ,276.00,Jun-23
EREWASH BOROUGH COUNCIL,25469,Green Space                   ,Materials and Consumables     ,26-Jun-2023,WAYNE PEAPELL CONSULTANCY LTD           ,"1,140.00",Jun-23
EREWASH BOROUGH COUNCIL,24564,Green Space                   ,Materials and Consumables     ,30-Apr-2023,WAYNE PEAPELL CONSULTANCY LTD           ,570.00,Jun-23
EREWASH BOROUGH COUNCIL,24416,Green Space                   ,Materials and Consumables     ,24-May-2023,STEELCRAFT FABRICATIONS                 ,"1,350.00",Jun-23
EREWASH BOROUGH COUNCIL,24669,Green Space                   ,Materials and Consumables     ,30-May-2023,PROTECTIVE WEAR SUPPLIES LTD            ,382.30,Jun-23
EREWASH BOROUGH COUNCIL,24812,Green Space                   ,Materials and Consumables     ,05-Jun-2023,AQUAM WATER SERVICES LIMITED            ,"1,280.00",Jun-23
EREWASH BOROUGH COUNCIL,24813,Green Space                   ,Materials and Consumables     ,05-Jun-2023,AQUAM WATER SERVICES LIMITED            ,"1,280.00",Jun-23
EREWASH BOROUGH COUNCIL,24148,Green Space                   ,Materials and Consumables     ,16-May-2023,MIDLANDS PARKS FORUM                    ,284.00,Jun-23
EREWASH BOROUGH COUNCIL,24742,Green Space                   ,Materials and Consumables     ,30-May-2023,CUBIT ULTRASONIC                        ,"1,956.50",Jun-23
EREWASH BOROUGH COUNCIL,24361,Green Space                   ,Contracted Services           ,16-May-2023,SAFETY SIGNS & NOTICES                  ,487.50,Jun-23
EREWASH BOROUGH COUNCIL,25272,Green Space                   ,Contracted Services           ,31-Mar-2023,DAB GRAPHICS                            ,"1,102.85",Jun-23
EREWASH BOROUGH COUNCIL,24704,Green Space                   ,Contracted Services           ,31-May-2023,T H HEATH  CONTRACTS  LTD               ,"8,687.88",Jun-23
EREWASH BOROUGH COUNCIL,24977,Green Space                   ,Contracted Services           ,05-Jun-2023,FENCOAT SERVICES LTD                    ,"1,620.00",Jun-23
EREWASH BOROUGH COUNCIL,24513,Green Space                   ,Repairs and Maintenance       ,24-May-2023,RUSSELLS (KIRBYMOORSIDE) LIMITED        ,"2,454.51",Jun-23
EREWASH BOROUGH COUNCIL,24512,Green Space                   ,Repairs and Maintenance       ,24-May-2023,RUSSELLS (KIRBYMOORSIDE) LIMITED        ,"3,605.28",Jun-23
EREWASH BOROUGH COUNCIL,23921,Green Space                   ,Repairs and Maintenance       ,05-May-2023,HENTON & CHATTELL LTD                   ,746.07,Jun-23
EREWASH BOROUGH COUNCIL,24747,Green Space                   ,Repairs and Maintenance       ,23-May-2023,HYDROBLAST LIMITED                      ,709.20,Jun-23
EREWASH BOROUGH COUNCIL,24747,Green Space                   ,Repairs and Maintenance       ,23-May-2023,HYDROBLAST LIMITED                      ,544.80,Jun-23
EREWASH BOROUGH COUNCIL,24411,Green Space                   ,Repairs and Maintenance       ,15-May-2023,CSEM TECHNOLOGIES LIMITED               ,"1,150.00",Jun-23
EREWASH BOROUGH COUNCIL,25297,Trees Hedges Local Nature Res ,Contracted Services           ,20-Jun-2023,TOM RICHARDS TREE SERVICES              ,400.00,Jun-23
EREWASH BOROUGH COUNCIL,25455,Trees Hedges Local Nature Res ,Contracted Services           ,21-Jun-2023,TOM RICHARDS TREE SERVICES              ,600.00,Jun-23
EREWASH BOROUGH COUNCIL,25258,Trees Hedges Local Nature Res ,Contracted Services           ,19-Jun-2023,CANOPY TREE SERVICES                    ,"2,000.00",Jun-23
EREWASH BOROUGH COUNCIL,25258,Trees Hedges Local Nature Res ,Contracted Services           ,19-Jun-2023,CANOPY TREE SERVICES                    ,375.00,Jun-23
EREWASH BOROUGH COUNCIL,25258,Trees Hedges Local Nature Res ,Contracted Services           ,19-Jun-2023,CANOPY TREE SERVICES                    ,"1,875.00",Jun-23
EREWASH BOROUGH COUNCIL,25258,Trees Hedges Local Nature Res ,Contracted Services           ,19-Jun-2023,CANOPY TREE SERVICES                    ,375.00,Jun-23
EREWASH BOROUGH COUNCIL,25258,Trees Hedges Local Nature Res ,Contracted Services           ,19-Jun-2023,CANOPY TREE SERVICES                    ,500.00,Jun-23
EREWASH BOROUGH COUNCIL,25258,Trees Hedges Local Nature Res ,Contracted Services           ,19-Jun-2023,CANOPY TREE SERVICES                    ,375.00,Jun-23
EREWASH BOROUGH COUNCIL,25258,Trees Hedges Local Nature Res ,Contracted Services           ,19-Jun-2023,CANOPY TREE SERVICES                    ,375.00,Jun-23
EREWASH BOROUGH COUNCIL,24151,Trees Hedges Local Nature Res ,Contracted Services           ,10-May-2023,CANOPY TREE SERVICES                    ,600.00,Jun-23
EREWASH BOROUGH COUNCIL,24118,Trees Hedges Local Nature Res ,Contracted Services           ,11-May-2023,CANOPY TREE SERVICES                    ,"2,700.00",Jun-23
EREWASH BOROUGH COUNCIL,24359,Play Areas                    ,Materials and Consumables     ,11-May-2023,EXPRESS MATTING SERVICES LTD            ,544.00,Jun-23
EREWASH BOROUGH COUNCIL,24757,Play Areas                    ,Materials and Consumables     ,23-May-2023,HAGSSMP                                 ,379.50,Jun-23
EREWASH BOROUGH COUNCIL,24754,Play Areas                    ,Materials and Consumables     ,23-May-2023,HAGSSMP                                 ,910.41,Jun-23
EREWASH BOROUGH COUNCIL,24666,Cemeteries                    ,Electricity                   ,18-May-2023,TOTALENERGIES GAS & POWER LTD           ,350.57,Jun-23
EREWASH BOROUGH COUNCIL,24066,Public Conveniences           ,Agency Staff                  ,12-May-2023,EXTRA PERSONNEL LTD                     ,500.00,Jun-23
EREWASH BOROUGH COUNCIL,24308,Public Conveniences           ,Agency Staff                  ,19-May-2023,EXTRA PERSONNEL LTD                     ,500.00,Jun-23
EREWASH BOROUGH COUNCIL,24028,Public Conveniences           ,Agency Staff                  ,10-May-2023,EXTRA PERSONNEL LTD                     ,500.00,Jun-23
EREWASH BOROUGH COUNCIL,24715,Public Conveniences           ,Agency Staff                  ,02-Jun-2023,EXTRA PERSONNEL LTD                     ,500.00,Jun-23
EREWASH BOROUGH COUNCIL,24551,Public Conveniences           ,Agency Staff                  ,26-May-2023,EXTRA PERSONNEL LTD                     ,500.00,Jun-23
EREWASH BOROUGH COUNCIL,23892,Public Conveniences           ,Agency Staff                  ,05-May-2023,EXTRA PERSONNEL LTD                     ,500.00,Jun-23
EREWASH BOROUGH COUNCIL,24666,Public Conveniences           ,Electricity                   ,18-May-2023,TOTALENERGIES GAS & POWER LTD           ,839.73,Jun-23
EREWASH BOROUGH COUNCIL,24305,Street Scene                  ,Agency Staff                  ,19-May-2023,EXTRA PERSONNEL LTD                     ,"2,151.82",Jun-23
EREWASH BOROUGH COUNCIL,24066,Street Scene                  ,Agency Staff                  ,12-May-2023,EXTRA PERSONNEL LTD                     ,"3,153.29",Jun-23
EREWASH BOROUGH COUNCIL,24308,Street Scene                  ,Agency Staff                  ,19-May-2023,EXTRA PERSONNEL LTD                     ,"3,499.08",Jun-23
EREWASH BOROUGH COUNCIL,24033,Street Scene                  ,Agency Staff                  ,10-May-2023,EXTRA PERSONNEL LTD                     ,"1,973.34",Jun-23
EREWASH BOROUGH COUNCIL,24028,Street Scene                  ,Agency Staff                  ,10-May-2023,EXTRA PERSONNEL LTD                     ,"3,108.64",Jun-23
EREWASH BOROUGH COUNCIL,24711,Street Scene                  ,Agency Staff                  ,02-Jun-2023,EXTRA PERSONNEL LTD                     ,"3,217.95",Jun-23
EREWASH BOROUGH COUNCIL,24715,Street Scene                  ,Agency Staff                  ,02-Jun-2023,EXTRA PERSONNEL LTD                     ,"4,831.18",Jun-23
EREWASH BOROUGH COUNCIL,24549,Street Scene                  ,Agency Staff                  ,26-May-2023,EXTRA PERSONNEL LTD                     ,"2,537.86",Jun-23
EREWASH BOROUGH COUNCIL,24551,Street Scene                  ,Agency Staff                  ,26-May-2023,EXTRA PERSONNEL LTD                     ,"3,578.14",Jun-23
EREWASH BOROUGH COUNCIL,23814,Street Scene                  ,Agency Staff                  ,03-May-2023,EXTRA PERSONNEL LTD                     ,203.58,Jun-23
EREWASH BOROUGH COUNCIL,23891,Street Scene                  ,Agency Staff                  ,05-May-2023,EXTRA PERSONNEL LTD                     ,"2,772.44",Jun-23
EREWASH BOROUGH COUNCIL,23892,Street Scene                  ,Agency Staff                  ,05-May-2023,EXTRA PERSONNEL LTD                     ,"3,313.30",Jun-23
EREWASH BOROUGH COUNCIL,24675,Street Scene                  ,Tyres                         ,31-May-2023,LODGE TYRE COMPANY LTD                  ,"1,047.74",Jun-23
EREWASH BOROUGH COUNCIL,24328,Street Scene                  ,Vehicle Sweeper Brushes       ,10-May-2023,PROBRUSH                                ,394.56,Jun-23
EREWASH BOROUGH COUNCIL,24332,Street Scene                  ,Materials and Consumables     ,16-May-2023,CROMWELL POLYTHENE LTD                  ,"3,819.00",Jun-23
EREWASH BOROUGH COUNCIL,22950,Street Scene                  ,Licences                      ,01-Apr-2023,ENVIRONMENT AGENCY                      ,"2,370.25",Jun-23
EREWASH BOROUGH COUNCIL,24252,Street Scene                  ,Repairs and Maintenance       ,12-May-2023,BUCHER MUNICIPAL LTD                    ,566.88,Jun-23
EREWASH BOROUGH COUNCIL,24411,Street Scene                  ,Repairs and Maintenance       ,15-May-2023,CSEM TECHNOLOGIES LIMITED               ,"1,150.00",Jun-23
EREWASH BOROUGH COUNCIL,24973,Dog Control                   ,Kennelling Costs              ,31-May-2023,CROWFOOT KENNELS LTD                    ,809.00,Jun-23
EREWASH BOROUGH COUNCIL,24666,CCTV - Ilkeston and Long Eaton,Electricity                   ,18-May-2023,TOTALENERGIES GAS & POWER LTD           ,722.21,Jun-23
EREWASH BOROUGH COUNCIL,24749,CCTV - Ilkeston and Long Eaton,Contracted Services           ,30-May-2023,SYNECTICS SECURITY LIMITED              ,756.60,Jun-23
EREWASH BOROUGH COUNCIL,24585,CCTV - Ilkeston and Long Eaton,Contracted Services           ,24-May-2023,SYNECTICS SECURITY LIMITED              ,489.00,Jun-23
EREWASH BOROUGH COUNCIL,24755,CCTV - Ilkeston and Long Eaton,Subscriptions                 ,31-May-2023,SYNECTICS SECURITY LIMITED              ,"2,790.00",Jun-23
EREWASH BOROUGH COUNCIL,25449,Residents Parking Scheme      ,Season Tickets                ,22-May-2023,DERBYSHIRE COUNTY COUNCIL...            ,"1,473.60",Jun-23
EREWASH BOROUGH COUNCIL,25448,Residents Parking Scheme      ,Season Tickets                ,22-May-2023,DERBYSHIRE COUNTY COUNCIL...            ,"2,976.00",Jun-23
EREWASH BOROUGH COUNCIL,24781,Car Parking                   ,Planned Preventative Maintenan,05-Jun-2023,H A CONSTRUCTION SERVICES LTD           ,"4,400.00",Jun-23
EREWASH BOROUGH COUNCIL,24784,Car Parking                   ,Planned Preventative Maintenan,05-May-2023,LANES GROUP PLC                         ,"4,250.00",Jun-23
EREWASH BOROUGH COUNCIL,24740,Car Parking                   ,Planned Preventative Maintenan,31-May-2023,CLEARWAY (MIDLANDS) LIMITED             ,"1,872.00",Jun-23
EREWASH BOROUGH COUNCIL,24666,Car Parking                   ,Electricity                   ,18-May-2023,TOTALENERGIES GAS & POWER LTD           ,"1,468.57",Jun-23
EREWASH BOROUGH COUNCIL,24326,Car Parking                   ,General Equipment             ,15-May-2023,INTERNATIONAL PARKING SYSTEMS UK LTD    ,"1,235.00",Jun-23
EREWASH BOROUGH COUNCIL,24691,Car Parking                   ,Contracted Services           ,31-May-2023,KINGS ARMOURED SECURITY SERVICES        ,"1,592.10",Jun-23
EREWASH BOROUGH COUNCIL,24702,Car Parking                   ,Credit/Debit Card Charges     ,31-May-2023,INTERNATIONAL PARKING SYSTEMS UK LTD    ,"3,326.76",Jun-23
EREWASH BOROUGH COUNCIL,24306,Long Eaton Market             ,Agency Staff                  ,19-May-2023,EXTRA PERSONNEL LTD                     ,271.44,Jun-23
EREWASH BOROUGH COUNCIL,24034,Long Eaton Market             ,Agency Staff                  ,10-May-2023,EXTRA PERSONNEL LTD                     ,230.72,Jun-23
EREWASH BOROUGH COUNCIL,23594,Long Eaton Market             ,Agency Staff                  ,28-Apr-2023,EXTRA PERSONNEL LTD                     ,239.77,Jun-23
EREWASH BOROUGH COUNCIL,22720,Long Eaton Market             ,Agency Staff                  ,06-Apr-2023,EXTRA PERSONNEL LTD                     ,271.44,Jun-23
EREWASH BOROUGH COUNCIL,24063,Long Eaton Market             ,Agency Staff                  ,12-May-2023,EXTRA PERSONNEL LTD                     ,271.44,Jun-23
EREWASH BOROUGH COUNCIL,22947,Long Eaton Market             ,Agency Staff                  ,14-Apr-2023,EXTRA PERSONNEL LTD                     ,314.16,Jun-23
EREWASH BOROUGH COUNCIL,24712,Long Eaton Market             ,Agency Staff                  ,02-Jun-2023,EXTRA PERSONNEL LTD                     ,271.44,Jun-23
EREWASH BOROUGH COUNCIL,24545,Long Eaton Market             ,Agency Staff                  ,26-May-2023,EXTRA PERSONNEL LTD                     ,271.44,Jun-23
EREWASH BOROUGH COUNCIL,24666,Ilkeston Market               ,Electricity                   ,18-May-2023,TOTALENERGIES GAS & POWER LTD           ,729.53,Jun-23
EREWASH BOROUGH COUNCIL,24306,Ilkeston Market               ,Agency Staff                  ,19-May-2023,EXTRA PERSONNEL LTD                     ,180.96,Jun-23
EREWASH BOROUGH COUNCIL,24034,Ilkeston Market               ,Agency Staff                  ,10-May-2023,EXTRA PERSONNEL LTD                     ,153.82,Jun-23
EREWASH BOROUGH COUNCIL,23594,Ilkeston Market               ,Agency Staff                  ,28-Apr-2023,EXTRA PERSONNEL LTD                     ,159.85,Jun-23
EREWASH BOROUGH COUNCIL,22720,Ilkeston Market               ,Agency Staff                  ,06-Apr-2023,EXTRA PERSONNEL LTD                     ,180.96,Jun-23
EREWASH BOROUGH COUNCIL,24063,Ilkeston Market               ,Agency Staff                  ,12-May-2023,EXTRA PERSONNEL LTD                     ,180.96,Jun-23
EREWASH BOROUGH COUNCIL,22947,Ilkeston Market               ,Agency Staff                  ,14-Apr-2023,EXTRA PERSONNEL LTD                     ,209.44,Jun-23
EREWASH BOROUGH COUNCIL,24712,Ilkeston Market               ,Agency Staff                  ,02-Jun-2023,EXTRA PERSONNEL LTD                     ,180.96,Jun-23
EREWASH BOROUGH COUNCIL,24545,Ilkeston Market               ,Agency Staff                  ,26-May-2023,EXTRA PERSONNEL LTD                     ,180.96,Jun-23
EREWASH BOROUGH COUNCIL,24666,Shopmobility - Ilkeston       ,Electricity                   ,18-May-2023,TOTALENERGIES GAS & POWER LTD           ,352.30,Jun-23
EREWASH BOROUGH COUNCIL,24666,Shopmobility - Long Eaton     ,Electricity                   ,18-May-2023,TOTALENERGIES GAS & POWER LTD           ,"1,491.10",Jun-23
EREWASH BOROUGH COUNCIL,24608,Commissioned Projects         ,Fees Costs and Expenses       ,31-May-2023,LEGACY LEISURE LTD                      ,"2,115.00",Jun-23
EREWASH BOROUGH COUNCIL,25272,Commissioned Projects         ,Fees Costs and Expenses       ,31-Mar-2023,DAB GRAPHICS                            ,"1,102.85",Jun-23
EREWASH BOROUGH COUNCIL,24137,Commissioned Projects         ,General Equipment             ,15-May-2023,ALL BEING WELL                          ,570.00,Jun-23
EREWASH BOROUGH COUNCIL,24784,Pedestrian Zones - Ilk and LE ,Planned Preventative Maintenan,05-May-2023,LANES GROUP PLC                         ,0.00,Jun-23
EREWASH BOROUGH COUNCIL,24117,Pedestrian Zones - Ilk and LE ,Reactive Maintenance          ,06-May-2023,RESIN STYLE DRIVEWAYS LTD               ,"1,900.00",Jun-23
EREWASH BOROUGH COUNCIL,24781,Pedestrian Zones - Ilk and LE ,Reactive Maintenance          ,05-Jun-2023,H A CONSTRUCTION SERVICES LTD           ,"4,400.00",Jun-23
EREWASH BOROUGH COUNCIL,24781,Pedestrian Zones - Ilk and LE ,Reactive Maintenance          ,05-Jun-2023,H A CONSTRUCTION SERVICES LTD           ,821.55,Jun-23
EREWASH BOROUGH COUNCIL,24110,Pedestrian Zones - Ilk and LE ,Reactive Maintenance          ,04-May-2023,STEELCRAFT FABRICATIONS                 ,330.00,Jun-23
EREWASH BOROUGH COUNCIL,24745,Property and Estates          ,Misc Income                   ,02-Jun-2023,NEP ENERGY SERVICES LTD                 ,340.00,Jun-23
EREWASH BOROUGH COUNCIL,24142,Property and Estates          ,Repairs and Maintenance       ,16-May-2023,NEP ENERGY SERVICES LTD                 ,585.00,Jun-23
EREWASH BOROUGH COUNCIL,24139,Property and Estates          ,Repairs and Maintenance       ,15-May-2023,ORTON MECHANICAL SERVICES               ,300.75,Jun-23
EREWASH BOROUGH COUNCIL,24321,Property and Estates          ,Repairs and Maintenance       ,22-May-2023,PEEL ELECTRICAL LTD                     ,851.60,Jun-23
EREWASH BOROUGH COUNCIL,24154,Property and Estates          ,Repairs and Maintenance       ,17-May-2023,PEEL ELECTRICAL LTD                     ,"1,715.84",Jun-23
EREWASH BOROUGH COUNCIL,24256,Property and Estates          ,Repairs and Maintenance       ,18-May-2023,PEEL ELECTRICAL LTD                     ,"1,987.64",Jun-23
EREWASH BOROUGH COUNCIL,24019,Property and Estates          ,Repairs and Maintenance       ,10-May-2023,PEEL ELECTRICAL LTD                     ,"1,783.32",Jun-23
EREWASH BOROUGH COUNCIL,24384,Property and Estates          ,Repairs and Maintenance       ,23-May-2023,PEEL ELECTRICAL LTD                     ,497.46,Jun-23
EREWASH BOROUGH COUNCIL,24765,Property and Estates          ,Repairs and Maintenance       ,31-May-2023,ACCESS DOORS LTD                        ,270.00,Jun-23
EREWASH BOROUGH COUNCIL,25005,Property and Estates          ,Reactive Maintenance          ,11-Apr-2023,SAINT-GOBAIN BUILDING DISTRIBUTION LIMIT,284.68,Jun-23
EREWASH BOROUGH COUNCIL,24783,Property and Estates          ,Reactive Maintenance          ,15-Mar-2023,SAINT-GOBAIN BUILDING DISTRIBUTION LIMIT,270.92,Jun-23
EREWASH BOROUGH COUNCIL,24102,Property and Estates          ,Reactive Maintenance          ,11-May-2023,ALPHA DRAIN SERVICES                    ,330.00,Jun-23
EREWASH BOROUGH COUNCIL,24027,Property and Estates          ,Reactive Maintenance          ,10-May-2023,ALPHA PARTNER (MIDLANDS)  LIMITED       ,306.00,Jun-23
EREWASH BOROUGH COUNCIL,23944,Property and Estates          ,Reactive Maintenance          ,10-May-2023,ALPHA PARTNER (MIDLANDS)  LIMITED       ,625.80,Jun-23
EREWASH BOROUGH COUNCIL,24089,Property and Estates          ,Reactive Maintenance          ,10-May-2023,ALPHA PARTNER (MIDLANDS)  LIMITED       ,350.00,Jun-23
EREWASH BOROUGH COUNCIL,24089,Property and Estates          ,Reactive Maintenance          ,10-May-2023,ALPHA PARTNER (MIDLANDS)  LIMITED       ,"1,030.00",Jun-23
EREWASH BOROUGH COUNCIL,24580,Property and Estates          ,Reactive Maintenance          ,31-May-2023,ALPHA PARTNER (MIDLANDS)  LIMITED       ,340.00,Jun-23
EREWASH BOROUGH COUNCIL,24388,Property and Estates          ,Alarms Reactive Maintenance   ,22-May-2023,TECSERV UK                              ,561.37,Jun-23
EREWASH BOROUGH COUNCIL,24587,Property and Estates          ,Alarms Reactive Maintenance   ,25-May-2023,TECSERV UK                              ,469.02,Jun-23
EREWASH BOROUGH COUNCIL,24665,Merlin Way Depot              ,Electricity                   ,18-May-2023,TOTALENERGIES GAS & POWER LTD           ,"3,480.45",Jun-23
EREWASH BOROUGH COUNCIL,24664,Merlin Way Depot              ,Gas                           ,19-May-2023,TOTALENERGIES GAS & POWER LTD           ,"1,161.78",Jun-23
EREWASH BOROUGH COUNCIL,24665,Civic Accommodation Long Eaton,Electricity                   ,18-May-2023,TOTALENERGIES GAS & POWER LTD           ,"2,987.36",Jun-23
EREWASH BOROUGH COUNCIL,24664,Civic Accommodation Long Eaton,Gas                           ,19-May-2023,TOTALENERGIES GAS & POWER LTD           ,"2,046.18",Jun-23
EREWASH BOROUGH COUNCIL,24664,Bridge House - Long Eaton     ,Gas                           ,19-May-2023,TOTALENERGIES GAS & POWER LTD           ,562.35,Jun-23
EREWASH BOROUGH COUNCIL,24307,Civic Accommodation Ilkeston  ,Agency Staff                  ,19-May-2023,EXTRA PERSONNEL LTD                     ,261.29,Jun-23
EREWASH BOROUGH COUNCIL,24064,Civic Accommodation Ilkeston  ,Agency Staff                  ,12-May-2023,EXTRA PERSONNEL LTD                     ,261.29,Jun-23
EREWASH BOROUGH COUNCIL,24710,Civic Accommodation Ilkeston  ,Agency Staff                  ,02-Jun-2023,EXTRA PERSONNEL LTD                     ,307.40,Jun-23
EREWASH BOROUGH COUNCIL,24665,Civic Accommodation Ilkeston  ,Electricity                   ,18-May-2023,TOTALENERGIES GAS & POWER LTD           ,"2,614.70",Jun-23
EREWASH BOROUGH COUNCIL,24666,Civic Accommodation Ilkeston  ,Electricity                   ,18-May-2023,TOTALENERGIES GAS & POWER LTD           ,718.05,Jun-23
EREWASH BOROUGH COUNCIL,24664,Civic Accommodation Ilkeston  ,Gas                           ,19-May-2023,TOTALENERGIES GAS & POWER LTD           ,"3,070.18",Jun-23
EREWASH BOROUGH COUNCIL,24666,Toll Bar House                ,Electricity                   ,18-May-2023,TOTALENERGIES GAS & POWER LTD           ,"4,929.30",Jun-23
EREWASH BOROUGH COUNCIL,24573,Toll Bar House                ,Alarms Planned Maintenence    ,30-May-2023,TECSERV UK                              ,256.76,Jun-23
EREWASH BOROUGH COUNCIL,24665,Sandiacre Friesland Sports Ctr,Electricity                   ,18-May-2023,TOTALENERGIES GAS & POWER LTD           ,"1,365.33",Jun-23
EREWASH BOROUGH COUNCIL,24664,Sandiacre Friesland Sports Ctr,Gas                           ,19-May-2023,TOTALENERGIES GAS & POWER LTD           ,"2,076.05",Jun-23
EREWASH BOROUGH COUNCIL,24664,Rutland Sports Park           ,Gas                           ,19-May-2023,TOTALENERGIES GAS & POWER LTD           ,297.60,Jun-23
EREWASH BOROUGH COUNCIL,23532,Chief Executives Office       ,Subscriptions                 ,26-Apr-2023,DISTRICT COUNCIL'S NETWORK              ,"3,143.00",Jun-23
EREWASH BOROUGH COUNCIL,24690,Compensation and Pensions     ,Compensatory Added Years      ,30-May-2023,DERBYSHIRE COUNTY COUNCIL...            ,"2,500.00",Jun-23
EREWASH BOROUGH COUNCIL,24690,Compensation and Pensions     ,Compensatory Added Years      ,30-May-2023,DERBYSHIRE COUNTY COUNCIL...            ,285.00,Jun-23
EREWASH BOROUGH COUNCIL,24567,EBC Balance Sheet             ,Fuel Store                    ,24-May-2023,STEVE BEAUMONT LTD T/A AUTOSMART        ,952.00,Jun-23
EREWASH BOROUGH COUNCIL,25433,EBC Balance Sheet             ,Fuel Store                    ,15-May-2023,CERTAS ENERGY UK LIMITED T/A CARLTON FUE,"31,835.82",Jun-23
EREWASH BOROUGH COUNCIL,24540,EBC Balance Sheet             ,Payroll Coll Acc - Income Tax ,19-Jun-2023,HMRC CUMBERNAULD                        ,"18,429.95",Jun-23
EREWASH BOROUGH COUNCIL,24542,EBC Balance Sheet             ,Payroll Coll Acc - Income Tax ,19-Jun-2023,HMRC CUMBERNAULD                        ,468.00,Jun-23
EREWASH BOROUGH COUNCIL,24574,EBC Balance Sheet             ,Payroll Coll Acc - Income Tax ,19-Jun-2023,HMRC CUMBERNAULD                        ,"73,280.51",Jun-23
EREWASH BOROUGH COUNCIL,24534,EBC Balance Sheet             ,Payroll Coll Acc Superanuation,26-May-2023,DERBYSHIRE COUNTY COUNCIL...            ,"171,867.36",Jun-23
EREWASH BOROUGH COUNCIL,24534,EBC Balance Sheet             ,Payroll Coll Acc Superanuation,26-May-2023,DERBYSHIRE COUNTY COUNCIL...            ,"41,834.00",Jun-23
EREWASH BOROUGH COUNCIL,24533,EBC Balance Sheet             ,Payroll Coll Acc Superanuation,26-May-2023,DERBYSHIRE COUNTY COUNCIL...            ,"1,770.93",Jun-23
EREWASH BOROUGH COUNCIL,24542,EBC Balance Sheet             ,Payroll Coll Acc National Ins ,19-Jun-2023,HMRC CUMBERNAULD                        ,524.25,Jun-23
EREWASH BOROUGH COUNCIL,24574,EBC Balance Sheet             ,Payroll Coll Acc National Ins ,19-Jun-2023,HMRC CUMBERNAULD                        ,"98,180.27",Jun-23
EREWASH BOROUGH COUNCIL,24574,EBC Balance Sheet             ,Payroll Coll Acc Student Loan ,19-Jun-2023,HMRC CUMBERNAULD                        ,"1,244.00",Jun-23
EREWASH BOROUGH COUNCIL,26153,EBC Balance Sheet             ,Lloyds Credit Card Suspense   ,02-Jun-2023,LLOYDS BANK PLC                         ,"4,210.45",Jun-23
EREWASH BOROUGH COUNCIL,26153,EBC Balance Sheet             ,Lloyds Credit Card Suspense   ,02-Jun-2023,LLOYDS BANK PLC                         ,660.00,Jun-23
EREWASH BOROUGH COUNCIL,27645,EBC Balance Sheet             ,NNDR Coll Fund Control Account,19-Jun-2023,"DEPT FOR LEVELLING UP,HOUSING&COMMUNITIE","977,241.00",Jun-23
EREWASH BOROUGH COUNCIL,25251,EBC Balance Sheet             ,EBC Fit for Work Scheme       ,20-Jun-2023,PARKWOOD LEISURE LTD                    ,464.00,Jun-23
EREWASH BOROUGH COUNCIL,25247,EBC Balance Sheet             ,Payroll Coll Acc - Trade Union,20-Jun-2023,UNISON                                  ,328.50,Jun-23
EREWASH BOROUGH COUNCIL,25246,EBC Balance Sheet             ,Payroll Coll Acc Labour Party ,20-Jun-2023,EREWASH LABOUR GROUP                    ,"1,478.94",Jun-23
EREWASH BOROUGH COUNCIL,25252,EBC Balance Sheet             ,Payroll Coll Acc - AVCS       ,20-Jun-2023,PRUDENTIAL                              ,"4,887.95",Jun-23
EREWASH BOROUGH COUNCIL,24730,EBC Balance Sheet             ,Childcare Salary Sacrifice    ,05-Jun-2023,KIDDIVOUCHERS LTD                       ,568.00,Jun-23
EREWASH BOROUGH COUNCIL,25253,EBC Balance Sheet             ,Payroll Coll Acc Attmnt Orders,20-Jun-2023,CHILD MAINTENANCE SERVICE               ,817.85,Jun-23
EREWASH BOROUGH COUNCIL,24141,Leisure Services              ,Consultants Fees              ,09-May-2023,MAX ASSOCIATES (HOLDINGS) LTD           ,"3,000.00",Jun-23
EREWASH BOROUGH COUNCIL,24319,Leisure Services              ,Contracted Services           ,22-May-2023,PARKWOOD LEISURE LTD                    ,"27,884.40",Jun-23
EREWASH BOROUGH COUNCIL,24767,Planning                      ,Structural Property Works     ,06-Jun-2023,J TOMLINSON LIMITED                     ,"124,164.36",Jun-23
EREWASH BOROUGH COUNCIL,24349,Planning                      ,Vehicles                      ,18-May-2023,MINIBUS OPTIONS                         ,"70,581.00",Jun-23
EREWASH BOROUGH COUNCIL,24116,Planning                      ,Structural Property Works     ,12-May-2023,BAILY GARNER LLP                        ,960.00,Jun-23
EREWASH BOROUGH COUNCIL,25006,Regulatory and Housing Service,Disabled Facilities Grant     ,03-May-2023,DERBYSHIRE COUNTY COUNCIL...            ,"11,299.40",Jun-23
EREWASH BOROUGH COUNCIL,24753,Shared Prosperity             ,Project Grants                ,31-May-2023,INFORMATION BY DESIGN                   ,"9,875.00",Jun-23
EREWASH BOROUGH COUNCIL,24514,Shared Prosperity             ,Project Grants                ,25-May-2023,UKSPF R&D GRANT SCHEME                  ,"13,430.00",Jun-23
EREWASH BOROUGH COUNCIL,24574,Human Resources               ,Apprenticeship Levy           ,19-Jun-2023,HMRC CUMBERNAULD                        ,"2,101.00",Jun-23
EREWASH BOROUGH COUNCIL,24574,Human Resources               ,Apprenticeship Levy           ,19-Jun-2023,HMRC CUMBERNAULD                        ,"1,250.00",Jun-23
EREWASH BOROUGH COUNCIL,24741,Human Resources               ,Legal Expenses                ,17-Apr-2023,DKD ASSOCIATES                          ,"4,968.00",Jun-23
EREWASH BOROUGH COUNCIL,24570,Human Resources               ,Software Licences             ,23-May-2023,INSIGHT DIRECT (UK) LTD                 ,265.07,Jun-23
EREWASH BOROUGH COUNCIL,24744,Human Resources and ICT       ,External Property Works       ,31-May-2023,POWER CONTROL LTD                       ,"4,589.00",Jun-23
EREWASH BOROUGH COUNCIL,24607,,,31-May-2023,PENHAM EXCEL LIMITED                    ,"1,411.64",Jun-23
EREWASH BOROUGH COUNCIL,25010,,,12-Jun-2023,PENHAM EXCEL LIMITED                    ,"1,186.31",Jun-23
